[Event "2nd China Binhai Open 2020"]
[Site "Tianjin"]
[Date "2020.01.13"]
[Round "2.23"]
[White "Xi, Qi"]
[Black "Lin Zhaochen"]
[Result "1/2-1/2"]
[ECO "A00"]
[WhiteElo "2261"]
[BlackElo "1934"]
[PlyCount "109"]
[EventDate "2020.01.13"]
[EventType "swiss"]
[EventRounds "9"]
[EventCountry "CHN"]
[TimeControl "5400+30"]

1. d4 d5 2. c4 e6 3. Nc3 Be7 4. Nf3 Nf6 5. Bf4 O-O 6. e3 Nbd7 7. cxd5 Nxd5 8. Nxd5 exd5 9. a3 c6 10. Bd3 Re8 11. O-O g6 12. b4 a6 13. Qb3 Nb6 14. a4 Be6 15. Nd2 Bd6 16. Bxd6 Qxd6 17. Rfc1 Nd7 18. Qc3 Rec8 19. h3 Qe7 20. Nb3 Nf6 21. Nc5 Ne8 22. Qb3 Nd6 23. b5 axb5 24. axb5 Rxa1 25. Rxa1 b6 26. Nxe6 Qxe6 27. bxc6 Rxc6 28. Re1 Ne8 29. e4 Nf6 30. e5 Ne8 31. Bb5 Rc8 32. Qa4 Qe7 33. Bc6 Nc7 34. Rb1 Rb8 35. Qa7 Qd8 36. Rxb6 Rxb6 37. Qxb6 Qg5 38. g3 Qd8 39. h4 Kg7 40. Kf1 Kg8 41. Ke2 h5 42. Kd3 Kg7 43. Bxd5 Qxd5 44. Qxc7 Qf3+ 45. Kc4 Qxf2 46. Qd8 Qxg3 47. Qf6+ Kg8 48. d5 Qa3 49. e6 Qa4+ 50. Kc5 Qa5+ 51. Kd6 Qb6+ 52. Kd7 Qb5+ 53. Ke7 Qb7+ 54. Kd8 Qb6+ 55. Kd7 1/2-1/2

[Event "2nd China Binhai Open 2020"]
[Site "Tianjin"]
[Date "2020.01.13"]
[Round "2.24"]
[White "Zhang, Lanlin"]
[Black "Zhu, Chenxi"]
[Result "1/2-1/2"]
[ECO "A00"]
[WhiteElo "2173"]
[BlackElo "1286"]
[PlyCount "105"]
[EventDate "2020.01.13"]
[EventType "swiss"]
[EventRounds "9"]
[EventCountry "CHN"]
[TimeControl "5400+30"]

1. e4 c5 2. Nf3 d6 3. d4 cxd4 4. Nxd4 Nf6 5. Nc3 a6 6. Be3 e5 7. Nb3 Be6 8. f3 Be7 9. Qd2 Nbd7 10. O-O-O O-O 11. g4 b5 12. g5 b4 13. Ne2 Ne8 14. f4 a5 15. f5 a4 16. Nbd4 exd4 17. Nxd4 b3 18. Kb1 bxc2+ 19. Nxc2 Bb3 20. axb3 axb3 21. Na3 Ne5 22. Qc3 Bxg5 23. Bxg5 Qxg5 24. Bc4 Nf6 25. Rhg1 Qf4 26. Qg3 Qxg3 27. Rxg3 Rxa3 28. bxa3 Nxc4 29. Rxb3 Nxe4 30. Ka2 Nf6 31. a4 d5 32. Rb5 Ne4 33. Rd3 Nf6 34. Rdb3 g6 35. fxg6 hxg6 36. Rb8 Ne4 37. R8b5 Ra8 38. Rb8+ Rxb8 39. Rxb8+ Kg7 40. Rd8 Nc5 41. Rxd5 Nxa4 42. Kb3 Nab6 43. Rb5 f5 44. Kc3 Kf6 45. h4 Nc8 46. Kd4 N8d6 47. Rb3 f4 48. Rh3 Kf5 49. h5 Kg4 50. hxg6 Kxh3 51. g7 Nf5+ 52. Ke4 Nxg7 53. Kxf4 1/2-1/2

[Event "2nd China Binhai Open 2020"]
[Site "Tianjin"]
[Date "2020.01.13"]
[Round "2.25"]
[White "Qiu, Mengjie"]
[Black "Li, Konstantin N."]
[Result "1-0"]
[ECO "A00"]
[WhiteElo "2167"]
[BlackElo "1454"]
[PlyCount "69"]
[EventDate "2020.01.13"]
[EventType "swiss"]
[EventRounds "9"]
[EventCountry "CHN"]
[TimeControl "5400+30"]

1. e4 e5 2. Nf3 Nc6 3. Bb5 a6 4. Ba4 Nf6 5. O-O Be7 6. Re1 b5 7. Bb3 d6 8. c3 Na5 9. Bc2 c5 10. d4 Nc6 11. d5 Na5 12. h3 O-O 13. Nbd2 Re8 14. b3 c4 15. b4 Nb7 16. a4 Bd7 17. axb5 Bxb5 18. Ba4 Qd7 19. Bxb5 Qxb5 20. Nb1 Rec8 21. Na3 Qd7 22. Nd2 a5 23. Naxc4 Qd8 24. Bb2 axb4 25. cxb4 Nd7 26. Qe2 Nb6 27. Na5 Nxa5 28. bxa5 Rc2 29. axb6 Rxb2 30. Rxa8 Qxa8 31. Rb1 Qa2 32. Rxb2 Qxb2 33. Qa6 Qxd2 34. Qc8+ Bf8 35. b7 1-0

[Event "2nd China Binhai Open 2020"]
[Site "Tianjin"]
[Date "2020.01.13"]
[Round "2.26"]
[White "Du, Yuxin"]
[Black "Wang, Zeyu"]
[Result "1/2-1/2"]
[ECO "A00"]
[WhiteElo "2073"]
[BlackElo "1395"]
[PlyCount "108"]
[EventDate "2020.01.13"]
[EventType "swiss"]
[EventRounds "9"]
[EventCountry "CHN"]
[TimeControl "5400+30"]

1. e4 e6 2. d4 d5 3. Nd2 Nf6 4. e5 Nfd7 5. Bd3 c5 6. c3 Nc6 7. Ne2 cxd4 8. cxd4 f6 9. exf6 Nxf6 10. Nf3 Bd6 11. O-O Qc7 12. Bg5 O-O 13. Bh4 Nh5 14. Qc2 h6 15. Bg6 Nf4 16. Nxf4 Bxf4 17. Bg3 Bd7 18. Rfe1 Bxg3 19. hxg3 Qd6 20. Rad1 Be8 21. Ne5 Nxe5 22. Bh7+ Kh8 23. Rxe5 Bd7 24. Bd3 Rac8 25. Qd2 Qb6 26. Bb1 Qa6 27. Re3 Rf6 28. Ra3 Qb6 29. Qd3 g6 30. Qd2 Kg7 31. g4 Rcf8 32. Rh3 Rh8 33. g5 hxg5 34. Rxh8 Kxh8 35. Qxg5 Kg7 36. b3 Qd6 37. Rc1 Bc6 38. g3 Qb4 39. Qe3 Qd6 40. Kg2 Qf8 41. Rh1 a6 42. Qh6+ Kf7 43. Qxf8+ Kxf8 44. Rh7 Kg8 45. Rc7 Rf7 46. Rxf7 Kxf7 47. Kf3 Kf6 48. Kf4 Be8 49. Bd3 Bd7 50. f3 Be8 51. a3 Bd7 52. Ke3 Be8 53. Kd2 Ke7 54. Kc3 Kd6 1/2-1/2

[Event "2nd China Binhai Open 2020"]
[Site "Tianjin"]
[Date "2020.01.13"]
[Round "2.27"]
[White "Zhang, Yichi"]
[Black "Zhou, Yichen"]
[Result "0-1"]
[ECO "A00"]
[WhiteElo "1638"]
[BlackElo "1536"]
[PlyCount "136"]
[EventDate "2020.01.13"]
[EventType "swiss"]
[EventRounds "9"]
[EventCountry "CHN"]
[TimeControl "5400+30"]

1. d4 Nf6 2. c4 e6 3. Nc3 Bb4 4. a3 Bxc3+ 5. bxc3 O-O 6. f3 d5 7. cxd5 exd5 8. e3 c5 9. Bd3 Nc6 10. Ne2 b6 11. O-O Bb7 12. dxc5 bxc5 13. Bb2 Re8 14. Bc1 Ne5 15. Ng3 Nxd3 16. Qxd3 g6 17. Re1 h5 18. Bd2 Nd7 19. e4 Ne5 20. Qc2 h4 21. Nh1 dxe4 22. fxe4 h3 23. Ng3 hxg2 24. Kxg2 Qd3 25. Qxd3 Nxd3 26. Re3 Rad8 27. Rf1 f5 28. Kg1 f4 29. Ref3 fxg3 30. Rxg3 Bxe4 31. Be3 Rf8 32. Rxf8+ Rxf8 33. h4 Rf3 34. Rxf3 Bxf3 35. Kh2 a5 36. Kg3 Be4 37. Kg4 Kf7 38. h5 gxh5+ 39. Kxh5 Ke6 40. c4 Kd6 41. Bd2 a4 42. Kg5 Bh7 43. Kg4 Ne5+ 44. Kf4 Nxc4 45. Bc1 Kd5 46. Kf3 Kd4 47. Ke2 Kc3 48. Kd1 Kb3 49. Bg5 Nxa3 50. Be7 c4 51. Kc1 Nb5 52. Bf6 c3 53. Be7 a3 54. Bxa3 Nxa3 55. Kd1 Kb2 56. Ke2 c2 57. Kf2 Bg8 58. Kf3 c1=Q 59. Ke4 Qg5 60. Kd4 Qf4+ 61. Kc5 Qe5+ 62. Kc6 Qd5+ 63. Kc7 Nb5+ 64. Kb6 Kb3 65. Ka6 Kb4 66. Kb6 Qd6+ 67. Kb7 Qc7+ 68. Ka8 Qa7# 0-1

[Event "2nd China Binhai Open 2020"]
[Site "Tianjin"]
[Date "2020.01.13"]
[Round "2.28"]
[White "Guo, Weibao"]
[Black "Weng, Xintong"]
[Result "1-0"]
[ECO "A00"]
[WhiteElo "1905"]
[BlackElo "1572"]
[PlyCount "127"]
[EventDate "2020.01.13"]
[EventType "swiss"]
[EventRounds "9"]
[EventCountry "CHN"]
[TimeControl "5400+30"]

1. d4 d5 2. c4 e6 3. Nf3 Nf6 4. e3 Nbd7 5. Nc3 Bb4 6. Bd2 c6 7. Bd3 dxc4 8. Bxc4 b5 9. Bd3 Bb7 10. O-O O-O 11. Qc2 a6 12. Ne4 Bxd2 13. Nfxd2 h6 14. Nc5 Nxc5 15. dxc5 Qe7 16. Ne4 Nxe4 17. Bxe4 Rfd8 18. Rad1 Rxd1 19. Rxd1 Rd8 20. b4 Rd7 21. g3 Qd8 22. Rxd7 Qxd7 23. Kg2 Kf8 24. Bf3 Kg8 25. Qc3 Qd8 26. Qe5 Kf8 27. h4 Kg8 28. Be4 Kf8 29. Qf4 Kg8 30. Kh2 h5 31. Bf3 g6 32. Kg2 Kg7 33. Qe5+ Kg8 34. Be4 Qd7 35. Qb8+ Kg7 36. Bf3 Qe7 37. Qe5+ Kg8 38. Kf1 Qd8 39. Ke2 Kf8 40. Be4 Qd7 41. Qf6 Kg8 42. Qe5 Kf8 43. Qh8+ Ke7 44. Qb8 f5 45. Bf3 Kf6 46. Qf8+ Qf7 47. Qh8+ Qg7 48. Qe8 Qc7 49. Qf8+ Qf7 50. Qd6 Qe7 51. Qxe7+ Kxe7 52. e4 Kf6 53. Ke3 Ke5 54. exf5 exf5 55. Bd1 Bc8 56. Bb3 Be6 57. Bxe6 Kxe6 58. Kf4 Kf6 59. f3 Ke6 60. Kg5 Kf7 61. Kh6 Kf6 62. Kh7 Kf7 63. f4 Kf6 64. Kg8 1-0

[Event "2nd China Binhai Open 2020"]
[Site "Tianjin"]
[Date "2020.01.13"]
[Round "2.29"]
[White "Guan, Runpei"]
[Black "Cai, Zhuoran"]
[Result "0-1"]
[ECO "A00"]
[WhiteElo "1561"]
[BlackElo "1902"]
[PlyCount "116"]
[EventDate "2020.01.13"]
[EventType "swiss"]
[EventRounds "9"]
[EventCountry "CHN"]
[TimeControl "5400+30"]

1. d4 Nf6 2. c4 e6 3. Nf3 b6 4. g3 Bb7 5. Bg2 Be7 6. O-O O-O 7. Nc3 d5 8. Ne5 Nbd7 9. cxd5 Nxd5 10. Nxd7 Qxd7 11. e4 Nxc3 12. bxc3 Rac8 13. Qg4 Rfd8 14. Bh6 Bf8 15. Bg5 Be7 16. Rfd1 Bxg5 17. Qxg5 Qa4 18. d5 Qb5 19. Qg4 Re8 20. e5 Bxd5 21. a4 Qc5 22. Bxd5 exd5 23. Rac1 Rcd8 24. Qd4 Qe7 25. f4 f6 26. Re1 fxe5 27. Rxe5 Qc5 28. Kg2 Qxd4 29. cxd4 Rxe5 30. fxe5 Rd7 31. Rc6 Kf8 32. Kf3 Rf7+ 33. Kg4 a5 34. h4 Ke8 35. e6 Rf6 36. Rxc7 Rxe6 37. Rxg7 Re4+ 38. Kf5 Rxd4 39. Rxh7 Rxa4 40. Ke6 Kf8 41. Kxd5 Rg4 42. Kc6 Rb4 43. h5 a4 44. h6 Kg8 45. Rg7+ Kh8 46. g4 a3 47. g5 Ra4 48. g6 a2 49. Rd7 Ra8 50. Rh7+ Kg8 51. Rg7+ Kf8 52. Rf7+ Ke8 53. Kd6 a1=Q 54. Re7+ Kd8 55. Rd7+ Kc8 56. Rc7+ Kb8 57. Rf7 Ra5 58. g7 Qe5+ 0-1

[Event "2nd China Binhai Open 2020"]
[Site "Tianjin"]
[Date "2020.01.13"]
[Round "2.30"]
[White "Tian, Jialin"]
[Black "Song, Ethan"]
[Result "1-0"]
[ECO "C77"]
[WhiteElo "1902"]
[BlackElo "1494"]
[PlyCount "111"]
[EventDate "2020.01.13"]
[EventType "swiss"]
[EventRounds "9"]
[EventCountry "CHN"]
[TimeControl "5400+30"]

1. e4 e5 2. Nf3 Nc6 3. Bb5 Nf6 4. d3 d6 5. c3 a6 6. Ba4 b5 7. Bc2 Be7 8. Nbd2 O-O 9. O-O Be6 10. Re1 Na7 11. d4 exd4 12. cxd4 c5 13. d5 Bg4 14. h3 Bh5 15. Nf1 Nd7 16. Bf4 f6 17. g4 Bg6 18. Bg3 Ne5 19. Nh4 Be8 20. Ne3 g6 21. Nhg2 c4 22. Nf4 Bf7 23. Kg2 Qd7 24. Ne2 Qc7 25. Nd4 Rab8 26. f4 Nd7 27. Ne6 Bxe6 28. dxe6 Nb6 29. Nd5 Nxd5 30. exd5 Rfc8 31. h4 b4 32. h5 Kg7 33. Rh1 Rh8 34. Rc1 Qa5 35. h6+ Kf8 36. Qd4 Nc8 37. g5 Qb6 38. Bf2 Qxd4 39. Bxd4 Rg8 40. gxf6 Bxf6 41. Bxf6 Ne7 42. Be4 Rc8 43. Rc2 Ke8 44. Rhc1 Rf8 45. Bg5 Nf5 46. Bxf5 Rxf5 47. Rxc4 Rxc4 48. Rxc4 Rxg5+ 49. fxg5 b3 50. axb3 Kd8 51. Rc6 a5 52. Rxd6+ Kc7 53. Rc6+ Kd8 54. d6 a4 55. bxa4 Ke8 56. Rc8# 1-0

[Event "2nd China Binhai Open 2020"]
[Site "Tianjin"]
[Date "2020.01.13"]
[Round "2.31"]
[White "Xu, Zicheng"]
[Black "Xu, Nuo"]
[Result "1/2-1/2"]
[ECO "A00"]
[WhiteElo "1448"]
[BlackElo "1891"]
[PlyCount "125"]
[EventDate "2020.01.13"]
[EventType "swiss"]
[EventRounds "9"]
[EventCountry "CHN"]
[TimeControl "5400+30"]

1. d4 Nf6 2. Nf3 e6 3. Bf4 b6 4. e3 Bb7 5. Bd3 c5 6. c3 d5 7. O-O Be7 8. h3 O-O 9. Nbd2 Nbd7 10. Re1 Nh5 11. Bh2 f5 12. Ne5 Nhf6 13. f4 a6 14. Ndf3 Ne4 15. Qe2 Ndf6 16. Red1 b5 17. g4 Qe8 18. Qe1 a5 19. Nh4 c4 20. Be2 Nd7 21. Nhf3 b4 22. Rab1 Nb6 23. Bg3 Na4 24. Rdc1 Rb8 25. Nh4 Ba8 26. Bf3 bxc3 27. b3 Nd2 28. bxa4 Rxb1 29. Rxb1 Nxb1 30. Qxb1 Qxa4 31. Bd1 Qb4 32. Qc2 g6 33. Nhf3 Qb2 34. Qa4 Rd8 35. Be1 Qc1 36. Kf2 Qa3 37. Qc2 Bb4 38. Ng5 Rd6 39. gxf5 exf5 40. Nef7 Rf6 41. Ne5 Qb2 42. Nd7 Rd6 43. Ne5 Rb6 44. Nd7 Rd6 45. Ne5 Kg7 46. Kf1 Qxc2 47. Bxc2 h6 48. Ngf3 Bc6 49. Nxc6 Rxc6 50. Ne5 Rb6 51. a4 Rb7 52. Ke2 Kf6 53. h4 Rh7 54. Nf3 Rh8 55. Kf2 Rb8 56. Ne5 Kg7 57. Ke2 Rb7 58. Nf3 Re7 59. Kf2 Re6 60. Ne5 Rb6 61. Ke2 Rb7 62. Nf3 Rb8 63. Ne5 1/2-1/2

[Event "2nd China Binhai Open 2020"]
[Site "Tianjin"]
[Date "2020.01.13"]
[Round "2.32"]
[White "Gong, Sunle"]
[Black "Shao, Ziyang B"]
[Result "1/2-1/2"]
[ECO "E85"]
[WhiteElo "1860"]
[BlackElo "1464"]
[PlyCount "139"]
[EventDate "2020.01.13"]
[EventType "swiss"]
[EventRounds "9"]
[EventCountry "CHN"]
[TimeControl "5400+30"]

1. d4 Nf6 2. c4 g6 3. f3 Bg7 4. e4 d6 5. Nc3 O-O 6. Be3 e5 7. Nge2 Nc6 8. d5 Ne7 9. g4 h5 10. h3 a6 11. Qd2 Bd7 12. Bg5 Nh7 13. Bh6 h4 14. Be3 b5 15. c5 dxc5 16. Bxc5 g5 17. Rd1 Bc8 18. Nc1 Re8 19. b4 Ng6 20. Nb3 Qf6 21. Qe3 Qf4 22. Ne2 Qf6 23. Rh2 Bf8 24. Rc1 Bd6 25. Rf2 Nhf8 26. Na5 Nd7 27. Bxd6 Qxd6 28. a3 Qb6 29. Qxg5 c5 30. dxc6 Ndf8 31. Nc3 Ne6 32. Qd2 Rd8 33. Nd5 Qd4 34. Qxd4 Nxd4 35. Nb6 Ra7 36. c7 Re8 37. Nc6 Rxc7 38. Nd5 Rxc6 39. Rxc6 Nxc6 40. Nf6+ Kf8 41. Nxe8 Kxe8 42. Rc2 Kd7 43. Kf2 Kd6 44. Ke3 Be6 45. Rc5 Nf4 46. Rc1 Ng6 47. Rd1+ Nd4 48. Rd2 Bc4 49. Rd1 Bxf1 50. Rxf1 Nf4 51. Rh1 Kc6 52. Rc1+ Kb6 53. Rc5 Nc6 54. Rc1 Nxh3 55. g5 Nf4 56. Rd1 Nd4 57. Kf2 a5 58. Rd2 Nh3+ 59. Ke3 Nxg5 60. f4 exf4+ 61. Kxf4 Ngf3 62. Rd1 axb4 63. axb4 h3 64. e5 h2 65. Rh1 Kc6 66. Ke4 Kd7 67. Ke3 Ke6 68. Ke4 f5+ 69. exf6 Kxf6 70. Rxh2 1/2-1/2

[Event "2nd China Binhai Open 2020"]
[Site "Tianjin"]
[Date "2020.01.13"]
[Round "2.33"]
[White "Sun, Haiyang"]
[Black "Chen, Yiru"]
[Result "0-1"]
[ECO "A00"]
[WhiteElo "1324"]
[BlackElo "1852"]
[PlyCount "162"]
[EventDate "2020.01.13"]
[EventType "swiss"]
[EventRounds "9"]
[EventCountry "CHN"]
[TimeControl "5400+30"]

1. d4 Nf6 2. c4 e6 3. Nf3 b6 4. g3 Ba6 5. Qc2 c5 6. d5 Bb7 7. Nc3 exd5 8. cxd5 Nxd5 9. Bg2 Nf6 10. O-O Be7 11. Rd1 Nc6 12. Bf4 a6 13. Bd6 Bxd6 14. Rxd6 Qc7 15. Rad1 O-O-O 16. R6d2 Rhe8 17. Qb3 d6 18. Nd5 Nxd5 19. Qxd5 Nd4 20. Qc4 b5 21. Qd3 Qc6 22. Ne1 Qc7 23. Bxb7+ Qxb7 24. Nc2 Nxc2 25. Qxc2 Qe4 26. Qc3 Qe5 27. Qf3 Kb8 28. Qxf7 Rf8 29. Qd5 Qf6 30. e4 Qe7 31. e5 dxe5 32. Qc6 Rxd2 33. Rxd2 Rf6 34. Qd7 Re6 35. Qd3 g6 36. Re2 e4 37. Qe3 Qd6 38. Kg2 Kc7 39. f3 exf3+ 40. Qxf3 Rxe2+ 41. Qxe2 Qd5+ 42. Kg1 Qxa2 43. Qe7+ Kc6 44. Qf6+ Kd7 45. Qg7+ Ke8 46. Qh8+ Ke7 47. Qxh7+ Qf7 48. Qh4+ Kd7 49. Qg4+ Qe6 50. Qd1+ Kc7 51. Qc1 Kb6 52. Qd1 Qe3+ 53. Kf1 Qd4 54. Qc2 Qf6+ 55. Kg1 a5 56. h3 a4 57. Kh2 Qd6 58. h4 Qc6 59. Qd2 b4 60. Qd8+ Kb5 61. Qb8+ Qb6 62. Qe8+ Qc6 63. Qe2+ c4 64. Qe5+ Ka6 65. Qd4 c3 66. Qd3+ Ka5 67. Qd8+ Kb5 68. Qb8+ Kc4 69. Qg8+ Kd3 70. Qd8+ Kc2 71. bxc3 b3 72. Qe7 b2 73. Qe2+ Kb3 74. Qd1+ Ka2 75. Qc2 Ka1 76. Qxb2+ Kxb2 77. g4 a3 78. h5 a2 79. hxg6 a1=Q 80. g7 Qah1+ 81. Kg3 Qcf3# 0-1

[Event "2nd China Binhai Open 2020"]
[Site "Tianjin"]
[Date "2020.01.13"]
[Round "2.35"]
[White "Matsuoka, Junichiro"]
[Black "Chen, Yining"]
[Result "1/2-1/2"]
[ECO "A00"]
[WhiteElo "1216"]
[BlackElo "1826"]
[PlyCount "77"]
[EventDate "2020.01.13"]
[EventType "swiss"]
[EventRounds "9"]
[EventCountry "CHN"]
[TimeControl "5400+30"]

1. Nf3 Nf6 2. d4 g6 3. c4 Bg7 4. Nc3 O-O 5. e4 d6 6. h3 c5 7. d5 e6 8. Bd3 exd5 9. exd5 Re8+ 10. Be2 Bf5 11. O-O Na6 12. a3 Nc7 13. Bd3 Qd7 14. Bxf5 gxf5 15. Rb1 Ne4 16. Qc2 Re7 17. Be3 Rae8 18. Qc1 Kh8 19. Bh6 Rg8 20. Bxg7+ Rxg7 21. Kh2 Re8 22. Ne2 b5 23. b3 Nf6 24. Qb2 Nh5 25. Rbe1 f6 26. Ng3 Nxg3 27. fxg3 Rxe1 28. Rxe1 Rf7 29. Nh4 Ne8 30. cxb5 Ng7 31. Qe2 Kg8 32. a4 Qb7 33. Qd3 Qd7 34. a5 Rf8 35. Rf1 Rb8 36. Nxf5 Qxb5 37. Nh6+ Kh8 38. Nf7+ Kg8 39. Nh6+ 1/2-1/2

[Event "2nd China Binhai Open 2020"]
[Site "Tianjin"]
[Date "2020.01.13"]
[Round "2.43"]
[White "Li, Yanzhe"]
[Black "Zhang, Yichi"]
[Result "0-1"]
[ECO "A00"]
[WhiteElo "1797"]
[BlackElo "1638"]
[PlyCount "96"]
[EventDate "2020.01.13"]
[EventType "swiss"]
[EventRounds "9"]
[EventCountry "CHN"]
[TimeControl "5400+30"]

1. e4 c5 2. Nf3 e6 3. Be2 Nc6 4. O-O Nf6 5. Nc3 Be7 6. d3 O-O 7. h3 e5 8. Nd5 d6 9. Nxe7+ Nxe7 10. Bg5 Ng6 11. Nh4 h6 12. Nxg6 fxg6 13. Bh4 g5 14. Bg3 Be6 15. c4 Qd7 16. Kh2 g4 17. h4 Nh5 18. Qd2 Nf4 19. Bxf4 exf4 20. Kh1 f3 21. gxf3 gxf3 22. Bd1 Bh3 23. Rg1 Bg2+ 24. Rxg2 fxg2+ 25. Kxg2 Rf6 26. Qe3 Raf8 27. f3 Rg6+ 28. Kh2 Qe7 29. Qf2 Qe5+ 30. Kh1 Rf4 31. Qh2 Qf6 32. h5 Rh4 33. hxg6 Rxh2+ 34. Kxh2 Qxb2+ 35. Kg3 Qxa1 36. Bb3 Qg1+ 37. Kf4 Qxg6 38. Ke3 h5 39. d4 h4 40. e5 cxd4+ 41. Kxd4 dxe5+ 42. Kxe5 h3 43. c5+ Kf8 44. Bd5 Qf6+ 45. Ke4 h2 46. Bxb7 h1=Q 47. Kd3 Qd1+ 48. Ke3 Qfd4# 0-1

[Event "2nd China Binhai Open 2020"]
[Site "Tianjin"]
[Date "2020.01.17"]
[Round "8.7"]
[White "Xi, Qi"]
[Black "Wang, Shixu B"]
[Result "1/2-1/2"]
[ECO "E32"]
[WhiteElo "2261"]
[BlackElo "2469"]
[Annotator "ChessBase"]
[PlyCount "61"]
[EventDate "2020.01.13"]
[EventType "swiss"]
[EventCountry "CHN"]
[SourceTitle "playchess.com"]
[Source "ChessBase"]
[SourceQuality "1"]
[TimeControl "5400+30"]

1. d4 {[%emt 0:00:00]} Nf6 {[%emt 0:00:03]} 2. c4 {[%emt 0:00:00]} e6 {[%emt 0:00:04]} 3. Nc3 {[%emt 0:00:00]} Bb4 {[%emt 0:00:04]} 4. Qc2 {[%emt 0:00:00]} d6 {[%emt 0:00:11]} 5. Nf3 {[%emt 0:00:06]} Nbd7 {[%emt 0:00:06]} 6. Bd2 {[%emt 0:00:24]} c5 {[%emt 0:00:09]} 7. dxc5 {[%emt 0:08:00]} Nxc5 {[%emt 0:00:48]} 8. e3 {[%emt 0:00:35]} O-O {[%emt 0:00:28]} 9. Be2 {[%emt 0:02:17]} b6 {[%emt 0:00:25]} 10. O-O {[%emt 0:00:33]} Bb7 {[%emt 0:00:18]} 11. a3 {[%emt 0:02:28]} Bxc3 {[%emt 0:00:06]} 12. Bxc3 {[%emt 0:00:03]} Nce4 {[%emt 0:02:35]} 13. Rfd1 {[%emt 0:00:59]} Rc8 {[%emt 0:01:24]} 14. Rac1 {[%emt 0:04:05]} Qe7 {[%emt 0:03:50]} 15. Be1 {[%emt 0:08:18]} e5 {[%emt 0:02:04]} 16. b4 {[%emt 0:02:12]} Rfd8 {[%emt 0:04:34]} 17. Qb2 {[%emt 0:01:44]} Qe6 {[%emt 0:00:19]} 18. c5 {[%emt 0:17:25]} bxc5 {[%emt 0:30:18]} 19. bxc5 {[%emt 0:00:07]} Rb8 {[%emt 0:00:45]} 20. cxd6 {[%emt 0:01:16]} Nxf2 {[%emt 0:04:30]} 21. Qxe5 {[%emt 0:17:30]} Nxd1 {[%emt 0:13:27]} 22. Qxe6 {[%emt 0:00:19]} fxe6 {[%emt 0:00:05]} 23. Rxd1 {[%emt 0:00:06]} Bd5 {[%emt 0:06:10]} 24. Ba5 {[%emt 0:05:09]} Rxd6 {[%emt 0:00:46]} 25. Bc7 {[%emt 0:00:09]} Rb2 {[%emt 0:09:44]} 26. Bxd6 {[%emt 0:00:18]} Rxe2 {[%emt 0:00:03]} 27. Bc5 {[%emt 0:03:50]} a5 {[%emt 0:01:52]} 28. Rd2 {[%emt 0:02:10]} Rxd2 {[%emt 0:04:08]} 29. Nxd2 {[%emt 0:00:01]} Ne4 {[%emt 0:00:09]} 30. Nxe4 {[%emt 0:00:05]} Bxe4 {[%emt 0:00:03]} 31. Kf2 {[%emt 0:00:05]} 1/2-1/2

[Event "2nd China Binhai Open 2020"]
[Site "Tianjin"]
[Date "2020.01.17"]
[Round "8.8"]
[White "Zhao, Yuanhe"]
[Black "Li, Bo"]
[Result "1-0"]
[ECO "A30"]
[WhiteElo "2466"]
[BlackElo "2312"]
[Annotator "ChessBase"]
[PlyCount "149"]
[EventDate "2020.01.13"]
[EventType "swiss"]
[EventCountry "CHN"]
[SourceTitle "playchess.com"]
[Source "ChessBase"]
[SourceQuality "1"]
[TimeControl "5400+30"]

1. Nf3 {[%emt 0:04:53]} Nf6 {[%emt 0:01:32]} 2. g3 {[%emt 0:00:04]} b6 {[%emt 0:06:39]} 3. Bg2 {[%emt 0:00:08]} Bb7 {[%emt 0:00:12]} 4. O-O {[%emt 0:00:06]} e6 {[%emt 0:02:15]} 5. c4 {[%emt 0:00:07]} Be7 {[%emt 0:02:52]} 6. Nc3 {[%emt 0:00:08]} c5 {[%emt 0:08:53]} 7. d4 {[%emt 0:05:24]} cxd4 {[%emt 0:01:17]} 8. Qxd4 {[%emt 0:00:12]} Nc6 {[%emt 0:01:36]} 9. Qd3 {[%emt 0:04:22]} O-O {[%emt 0:02:38]} 10. e4 {[%emt 0:00:32]} d6 {[%emt 0:03:09]} 11. Bf4 {[%emt 0:02:09]} Ng4 {[%emt 0:11:18]} 12. Rfd1 {[%emt 0:02:51]} Nge5 {[%emt 0:02:02]} 13. Qe2 {[%emt 0:00:12]} Qc8 {[%emt 0:03:49]} 14. b3 {[%emt 0:03:41]} Rd8 {[%emt 0:02:06]} 15. Rac1 {[%emt 0:00:51]} Rd7 {[%emt 0:02:48]} 16. Ne1 {[%emt 0:02:31]} Qf8 {[%emt 0:05:53]} 17. Rd2 {[%emt 0:03:55]} Rdd8 {[%emt 0:02:24]} 18. Rcd1 {[%emt 0:00:53]} Rac8 {[%emt 0:02:08]} 19. Nc2 {[%emt 0:02:19]} Ba6 {[%emt 0:02:13]} 20. Be3 {[%emt 0:01:58]} Na5 {[%emt 0:03:07]} 21. Nb5 {[%emt 0:08:34]} Rd7 {[%emt 0:09:36]} 22. Nb4 {[%emt 0:10:54]} Bxb5 {[%emt 0:01:15]} 23. cxb5 {[%emt 0:00:06]} Rdc7 {[%emt 0:01:19]} 24. Na6 {[%emt 0:01:19]} Rc3 {[%emt 0:01:42]} 25. h3 {[%emt 0:05:08]} Nd7 {[%emt 0:01:40]} 26. Kh2 {[%emt 0:00:44]} Nb8 {[%emt 0:02:50]} 27. Bd4 {[%emt 0:03:04]} Rc1 {[%emt 0:00:48]} 28. Nxb8 {[%emt 0:02:53]} Rxd1 {[%emt 0:00:24]} 29. Rxd1 {[%emt 0:00:08]} Rxb8 {[%emt 0:00:17]} 30. b4 {[%emt 0:00:07]} Nb7 {[%emt 0:01:18]} 31. Rc1 {[%emt 0:00:06]} Qd8 {[%emt 0:01:55]} 32. a4 {[%emt 0:01:05]} g6 {[%emt 0:02:00]} 33. Qb2 {[%emt 0:03:03]} Qd7 {[%emt 0:01:56]} 34. Qc3 {[%emt 0:00:46]} e5 {[%emt 0:03:07]} 35. Be3 {[%emt 0:00:10]} Nd8 {[%emt 0:00:09]} 36. h4 {[%emt 0:01:20]} Ne6 {[%emt 0:00:35]} 37. Bh3 {[%emt 0:01:06]} h5 {[%emt 0:00:46]} 38. Qc4 {[%emt 0:00:57]} Rd8 {[%emt 0:01:07]} 39. Qd5 {[%emt 0:01:08]} Bf6 {[%emt 0:00:54]} 40. a5 {[%emt 0:01:24]} Rb8 {[%emt 0:01:07]} 41. Rc6 {[%emt 0:01:02]} Qe8 {[%emt 0:02:22]} 42. axb6 {[%emt 0:01:12]} axb6 {[%emt 0:00:01]} 43. Bxe6 {[%emt 0:03:48]} Qxe6 {[%emt 0:01:33]} 44. Qxe6 {[%emt 0:00:03]} fxe6 {[%emt 0:00:16]} 45. Rxd6 {[%emt 0:00:04]} Kf7 {[%emt 0:00:33]} 46. Rxb6 {[%emt 0:00:03]} Rxb6 {[%emt 0:00:48]} 47. Bxb6 {[%emt 0:00:04]} Ke8 {[%emt 0:00:19]} 48. Kg2 {[%emt 0:00:18]} Kd7 {[%emt 0:00:28]} 49. Kf3 {[%emt 0:00:11]} Kc8 {[%emt 0:00:27]} 50. Ke2 {[%emt 0:00:28]} Kb7 {[%emt 0:00:39]} 51. Bc5 {[%emt 0:00:03]} Bd8 {[%emt 0:00:50]} 52. Kd3 {[%emt 0:00:28]} Bf6 {[%emt 0:00:25]} 53. Kc4 {[%emt 0:00:13]} Kc7 {[%emt 0:01:16]} 54. Bf8 {[%emt 0:00:15]} Kb6 {[%emt 0:00:36]} 55. Bd6 {[%emt 0:00:04]} Bg7 {[%emt 0:00:58]} 56. Be7 {[%emt 0:00:05]} Bh6 {[%emt 0:01:04]} 57. Bf6 {[%emt 0:00:08]} Bd2 {[%emt 0:00:21]} 58. Bxe5 {[%emt 0:00:07]} Be1 {[%emt 0:00:09]} 59. Bc3 {[%emt 0:00:08]} Bxf2 {[%emt 0:00:25]} 60. Bd4+ {[%emt 0:00:03]} Bxd4 {[%emt 0:00:10]} 61. Kxd4 {[%emt 0:00:03]} Kxb5 {[%emt 0:00:12]} 62. Ke5 {[%emt 0:00:03]} Kxb4 {[%emt 0:00:09]} 63. Kxe6 {[%emt 0:00:03]} Kc5 {[%emt 0:00:09]} 64. Kf6 {[%emt 0:00:05]} Kd4 {[%emt 0:00:11]} 65. e5 {[%emt 0:00:03]} Ke4 {[%emt 0:00:12]} 66. e6 {[%emt 0:00:03]} Kf3 {[%emt 0:00:09]} 67. e7 {[%emt 0:00:03]} Kxg3 {[%emt 0:00:11]} 68. e8=Q {[%emt 0:00:06]} Kxh4 {[%emt 0:00:06]} 69. Qxg6 {[%emt 0:00:06]} Kh3 {[%emt 0:00:20]} 70. Kf5 {[%emt 0:00:03]} h4 {[%emt 0:00:24]} 71. Kf4 {[%emt 0:00:02]} Kh2 {[%emt 0:00:22]} 72. Kf3 {[%emt 0:00:02]} h3 {[%emt 0:00:13]} 73. Qg3+ {[%emt 0:00:03]} Kh1 {[%emt 0:00:10]} 74. Qxh3+ {[%emt 0:00:02]} Kg1 {[%emt 0:00:19]} 75. Qg2# {[%emt 0:00:03]} 1-0